fUSD/lending_fUSD_20250814
["ID","MTS","AMOUNT","RATE_DAILY","PERIOD"]
[379192955,1755181844586,-151.0,0.00027397,7]
[379192957,1755181844596,-400.0,0.00027397,2]
[379192959,1755181844606,-400.0,0.00027397,2]
[379192960,1755181844616,-400.0,0.00027397,2]
[379192963,1755181844628,-400.0,0.00027397,2]
[379192964,1755181844638,-215.564988,0.00027397,7]
[379192967,1755181844647,-215.564988,0.00027397,7]
[379192969,1755181844656,-215.564988,0.00027397,7]
[379192971,1755181844666,-215.564988,0.00027397,7]
[379192973,1755181844676,-400.0,0.00027397,2]
[379192975,1755181844686,-400.0,0.00027397,2]
[379192977,1755181844697,-400.0,0.00027397,2]
[379192979,1755181844707,-400.0,0.00027397,2]
[379192981,1755181844717,-222.82416146,0.00027397,2]
[379192983,1755181844726,-500.0,0.00027397,2]
[379192985,1755181844736,-400.0,0.00027397,2]
[379192987,1755181844745,-500.0,0.00027397,2]
[379192988,1755181844755,-500.0,0.00027397,2]
[379192989,1755181844764,-500.0,0.00027397,2]
[379192990,1755181844775,-500.0,0.00027397,2]
[379192991,1755181844784,-500.0,0.00027397,2]
[379192992,1755181844794,-500.0,0.00027397,2]
[379192993,1755181844803,-500.0,0.00027397,2]
[379192994,1755181844812,-500.0,0.00027397,2]
[379192995,1755181844822,-500.0,0.00027397,2]
[379192996,1755181844831,-400.0,0.00027397,2]
[379192997,1755181844840,-769.83,0.00027397,2]
[379192998,1755181844850,-299.910822,0.00027397,7]
[379192999,1755181844860,-299.910822,0.00027397,7]
[379193000,1755181844869,-400.0,0.00027397,2]
[379193001,1755181844880,-1807.1,0.00027397,2]
[379193002,1755181844890,-400.0,0.00027397,2]
[379193003,1755181844900,-400.0,0.00027397,2]
[379193004,1755181844909,-400.0,0.00027397,2]
[379193005,1755181844919,-151.0,0.00027397,7]
[379193006,1755181844928,-400.0,0.00027397,2]
[379193007,1755181844938,-1428.15,0.00027397,2]
[379193008,1755181844948,-400.0,0.00027397,2]
[379193009,1755181844958,-400.0,0.00027397,2]
[379193010,1755181844968,-400.0,0.00027397,2]
[379193011,1755181844977,-400.0,0.00027397,2]
[379193012,1755181844987,-527.81,0.00027397,2]
[379193013,1755181844997,-400.0,0.00027397,2]
[379193014,1755181845008,-400.0,0.00027397,2]
[379193015,1755181845018,-480.38,0.00027397,2]
[379193016,1755181845027,-400.0,0.00027397,2]
[379193019,1755181845038,-500.0,0.00027397,2]
[379193021,1755181845048,-1610.85,0.00027397,2]
[379193022,1755181845057,-400.0,0.00027397,2]
[379193024,1755181845066,-500.0,0.00027397,2]
[379193026,1755181845076,-500.0,0.00027397,2]
[379193028,1755181845086,-500.0,0.00027397,2]
[379193029,1755181845096,-500.0,0.00027397,2]
[379193030,1755181845106,-500.0,0.00027397,2]
[379193031,1755181845116,-500.0,0.00027397,2]
[379193032,1755181845126,-500.0,0.00027397,2]
[379193033,1755181845135,-500.0,0.00027397,2]
[379193034,1755181845145,-500.0,0.00027397,2]
[379193035,1755181845155,-500.0,0.00027397,2]
[379193036,1755181845164,-419.34,0.00027397,2]
[379193037,1755181845174,-151.0,0.00027397,7]
[379193038,1755181845184,-151.0,0.00027397,7]
[379193039,1755181845194,-400.0,0.00027397,2]
[379193040,1755181845204,-400.0,0.00027397,2]
[379193041,1755181845213,-641.09,0.00027397,2]
[379193042,1755181845223,-747.35,0.00027397,2]
[379193043,1755181845232,-552.37,0.00027397,2]
[379193044,1755181845242,-2153.17,0.00027397,2]
[379193045,1755181845252,-400.0,0.00027397,2]
[379193046,1755181845261,-400.0,0.00027397,2]
[379193047,1755181845271,-400.0,0.00027397,2]
[379193048,1755181845280,-400.0,0.00027397,2]
[379193049,1755181845290,-400.0,0.00027397,2]
[379193050,1755181845300,-1089.54,0.00027397,2]
[379193051,1755181845310,-400.0,0.00027397,2]
[379193052,1755181845319,-151.0,0.00027397,7]
[379193053,1755181845329,-1433.91,0.00027397,2]
[379193054,1755181845339,-400.0,0.00027397,2]
[379193055,1755181845349,-435.13,0.00027397,2]
[379193056,1755181845358,-400.0,0.00027397,2]
[379193057,1755181845367,-400.0,0.00027397,2]
[379193058,1755181845378,-2269.83,0.00027397,2]
[379193059,1755181845388,-400.0,0.00027397,2]
[379193060,1755181845398,-435.91,0.00027397,2]
[379193061,1755181845409,-400.0,0.00027397,2]
[379193062,1755181845419,-400.0,0.00027397,2]
[379193063,1755181845429,-756.24,0.00027397,2]
[379193064,1755181845439,-446.19,0.00027397,2]
[379193065,1755181845450,-400.0,0.00027397,2]
[379193066,1755181845461,-400.0,0.00027397,2]
[379193067,1755181845470,-400.0,0.00027397,2]
[379193068,1755181845481,-400.0,0.00027397,2]
[379193069,1755181845491,-591.71,0.00027397,2]
[379193070,1755181845501,-200.0,0.00027397,2]
[379193071,1755181845511,-746.85,0.00027397,2]
[379193072,1755181845521,-644.35,0.00027397,2]
[379193073,1755181845530,-400.0,0.00027397,2]
[379193074,1755181845540,-831.54,0.00027397,2]
[379193076,1755181845550,-400.0,0.00027397,2]
[379193078,1755181845560,-400.0,0.00027397,2]
[379193080,1755181845570,-1745.4,0.00027397,2]
[379193082,1755181845580,-400.0,0.00027397,2]
[379193083,1755181845590,-1105.4,0.00027397,2]
[379193084,1755181845600,-400.0,0.00027397,2]
[379193085,1755181845610,-400.61,0.00027397,2]
[379193086,1755181845619,-1078.000302,0.00027397,7]
[379193088,1755181845631,-400.0,0.00027397,2]
[379193089,1755181845640,-516.11,0.00027397,2]
[379193090,1755181845650,-151.0,0.00027397,7]
[379193091,1755181845659,-400.0,0.00027397,2]
[379193092,1755181845669,-1078.000302,0.00027397,7]
[379193093,1755181845679,-400.0,0.00027397,2]
[379193094,1755181845688,-400.0,0.00027397,2]
[379193095,1755181845698,-2805.53,0.00027397,2]
[379193096,1755181845707,-400.0,0.00027397,2]
[379193097,1755181845717,-1002.64,0.00027397,2]
[379193098,1755181845726,-464.72,0.00027397,2]
[379193099,1755181845736,-400.0,0.00027397,2]
[379193100,1755181845745,-400.0,0.00027397,2]
[379193101,1755181845755,-400.0,0.00027397,2]
[379193102,1755181845764,-400.0,0.00027397,2]
[379193104,1755181845774,-492.66,0.00027397,2]
[379193105,1755181845783,-2998.09,0.00027397,2]
[379193106,1755181845793,-400.0,0.00027397,2]
[379193107,1755181845802,-400.0,0.00027397,2]
[379193108,1755181845812,-400.0,0.00027397,2]
[379193109,1755181845821,-1001.24,0.00027397,2]
[379193110,1755181845831,-991.16,0.00027397,2]
[379193111,1755181845840,-558.0,0.00027397,2]
[379193112,1755181845850,-1188.32,0.00027397,2]
[379193113,1755181845859,-400.0,0.00027397,2]
[379193114,1755181845869,-2946.14,0.00027397,2]
[379193115,1755181845883,-174.075462,0.00027397,7]
[379193116,1755181845892,-1633.88,0.00027397,2]
[379193117,1755181845902,-1011.06,0.00027397,2]
[379193118,1755181845911,-400.0,0.00027397,2]
[379193119,1755181845921,-400.0,0.00027397,2]
[379193120,1755181845930,-603.27,0.00027397,2]
[379193121,1755181845940,-400.0,0.00027397,2]
[379193122,1755181845949,-400.0,0.00027397,2]
[379193123,1755181845958,-174.075462,0.00027397,7]
[379193124,1755181845967,-400.0,0.00027397,2]
[379193125,1755181845977,-400.0,0.00027397,2]
[379193126,1755181845986,-400.0,0.00027397,2]
[379193127,1755181845998,-450.12,0.00027397,2]
[379193128,1755181846009,-400.46,0.00027397,2]
[379193129,1755181846019,-408.68,0.00027397,2]
[379193130,1755181846028,-400.0,0.00027397,2]
[379193131,1755181846038,-2755.23,0.00027397,2]
[379193132,1755181846047,-400.0,0.00027397,2]
[379193133,1755181846057,-2090.66,0.00027397,2]
[379193134,1755181846067,-300.0,0.00027397,2]
[379193135,1755181846076,-2206.23,0.00027397,2]
[379193136,1755181846086,-400.0,0.00027397,2]
[379193137,1755181846095,-400.0,0.00027397,2]
[379193138,1755181846105,-400.0,0.00027397,2]
[379193139,1755181846114,-400.0,0.00027397,2]
[379193140,1755181846124,-504.68,0.00027397,2]
[379193141,1755181846132,-703.44,0.00027397,2]
[379193142,1755181846142,-4097.43,0.00027397,2]
[379193143,1755181846151,-1637.5,0.00027397,2]
[379193144,1755181846160,-1596.09,0.00027397,2]
[379193145,1755181846170,-400.0,0.00027397,2]
[379193146,1755181846180,-666.95,0.00027397,2]
[379193147,1755181846190,-940.38,0.00027397,2]
[379193148,1755181846199,-2328.04,0.00027397,2]
[379193149,1755181846209,-400.0,0.00027397,2]
[379193150,1755181846219,-2344.99,0.00027397,2]
[379193151,1755181846228,-1488.33,0.00027397,2]
[379193152,1755181846237,-3603.07,0.00027397,2]
[379193153,1755181846247,-465.26,0.00027397,2]
[379193154,1755181846396,-448.33,0.00027397,2]
[379193155,1755181846406,-400.0,0.00027397,2]
[379193156,1755181846416,-430.85,0.00027397,2]
[379193157,1755181846425,-400.0,0.00027397,2]
[379193158,1755181846434,-400.0,0.00027397,2]
[379193159,1755181846443,-400.0,0.00027397,2]
[379193160,1755181846453,-1120.84,0.00027397,2]
[379193161,1755181846462,-991.89,0.00027397,2]
[379193162,1755181846471,-1795.19,0.00027397,2]
[379193163,1755181846481,-2351.21,0.00027397,2]
[379193164,1755181846490,-817.44,0.00027397,2]
[379193165,1755181846500,-400.0,0.00027397,2]
[379193166,1755181846509,-1048.75,0.00027397,2]
[379193167,1755181846518,-1435.48,0.00027397,2]
[379193168,1755181846527,-3162.44,0.00027397,2]
[379193169,1755181846537,-821.42,0.00027397,2]
[379193170,1755181846546,-614.93,0.00027397,2]
[379193171,1755181846555,-395.03503,0.00027397,7]
[379193172,1755181846565,-742.15,0.00027397,2]
[379193173,1755181846575,-733.11,0.00027397,2]
[379193174,1755181846584,-400.0,0.00027397,2]
[379193175,1755181846594,-395.03503,0.00027397,7]
[379193176,1755181846604,-772.84,0.00027397,2]
[379193177,1755181846613,-2404.66,0.00027397,2]
[379193178,1755181846624,-400.0,0.00027397,2]
[379193179,1755181846634,-805.17,0.00027397,2]
[379193180,1755181846643,-400.0,0.00027397,2]
[379193181,1755181846652,-609.91,0.00027397,2]
[379193182,1755181846662,-400.0,0.00027397,2]
[379193183,1755181846671,-2342.56,0.00027397,2]
[379193184,1755181846683,-2422.27,0.00027397,2]
[379193185,1755181846692,-400.0,0.00027397,2]
[379193186,1755181846701,-400.0,0.00027397,2]
[379193187,1755181846711,-400.0,0.00027397,2]
[379193188,1755181846720,-400.0,0.00027397,2]
[379193189,1755181846729,-614.39,0.00027397,2]
[379193190,1755181846739,-400.0,0.00027397,2]
[379193191,1755181846748,-1441.71,0.00027397,2]
[379193192,1755181846757,-400.0,0.00027397,2]
[379193193,1755181846766,-400.0,0.00027397,2]
[379193194,1755181846775,-2388.5,0.00027397,2]
[379193195,1755181846785,-400.0,0.00027397,2]
[379193196,1755181846795,-400.0,0.00027397,2]
[379193197,1755181846806,-498.55,0.00027397,2]
[379193198,1755181846815,-408.18,0.00027397,2]
[379193199,1755181846825,-1816.38,0.00027397,2]
[379193200,1755181846834,-1062.61,0.00027397,2]
[379193201,1755181846844,-400.0,0.00027397,2]
[379193202,1755181846853,-400.0,0.00027397,2]
[379193203,1755181846863,-400.0,0.00027397,2]
[379193204,1755181846874,-953.92,0.00027397,2]
[379193205,1755181846884,-400.0,0.00027397,2]
[379193206,1755181846894,-2083.71,0.00027397,2]
[379193207,1755181846903,-1261.31,0.00027397,2]
[379193208,1755181846912,-1244.8,0.00027397,2]
[379193209,1755181846921,-826.95,0.00027397,2]
[379193210,1755181846930,-1846.42,0.00027397,2]
[379193211,1755181846939,-400.0,0.00027397,2]
[379193212,1755181846949,-1206.69,0.00027397,2]
[379193213,1755181846959,-691.74,0.00027397,2]
[379193214,1755181846967,-400.0,0.00027397,2]
[379193215,1755181846977,-400.0,0.00027397,2]
[379193216,1755181846987,-825.26,0.00027397,2]
[379193217,1755181846996,-400.0,0.00027397,2]
[379193218,1755181847008,-519.71,0.00027397,2]
[379193219,1755181847018,-927.62,0.00027397,2]
[379193220,1755181847027,-2481.99,0.00027397,2]
[379193221,1755181847036,-744.96,0.00027397,2]
[379193222,1755181847046,-2346.26,0.00027397,2]
[379193223,1755181847055,-400.0,0.00027397,2]
[379193224,1755181847065,-799.87,0.00027397,2]
[379193225,1755181847076,-400.0,0.00027397,2]
[379193226,1755181847086,-1024.32,0.00027397,2]
[379193227,1755181847095,-759.52,0.00027397,2]
[379193228,1755181847104,-936.24,0.00027397,2]
[379193229,1755181847114,-400.0,0.00027397,2]
[379193230,1755181847125,-400.0,0.00027397,2]
[379193231,1755181847135,-400.0,0.00027397,2]
[379193232,1755181847144,-2734.55,0.00027397,2]
[379193233,1755181847153,-490.1,0.00027397,2]
[379193234,1755181847162,-400.0,0.00027397,2]
[379193235,1755181847172,-520.91,0.00027397,2]
[379193236,1755181847181,-400.0,0.00027397,2]
[379193237,1755181847191,-400.0,0.00027397,2]
[379193238,1755181847200,-400.0,0.00027397,2]
[379193239,1755181847209,-1069.89,0.00027397,2]
[379193240,1755181847218,-2172.37,0.00027397,2]
[379193241,1755181847227,-400.0,0.00027397,2]
[379193242,1755181847236,-554.4,0.00027397,2]
[379193243,1755181847246,-4652.18,0.00027397,2]
[379193244,1755181847255,-400.0,0.00027397,2]
[379193245,1755181847264,-400.0,0.00027397,2]
[379193246,1755181847274,-1390.51,0.00027397,2]
[379193247,1755181847283,-400.0,0.00027397,2]
[379193248,1755181847292,-400.0,0.00027397,2]
[379193249,1755181847302,-400.0,0.00027397,2]
[379193250,1755181847311,-579.25,0.00027397,2]
[379193251,1755181847321,-400.0,0.00027397,2]
[379193252,1755181847330,-400.0,0.00027397,2]
[379193253,1755181847339,-400.0,0.00027397,2]
[379193254,1755181847349,-400.0,0.00027397,2]
[379193255,1755181847358,-1040.97,0.00027397,2]
[379193256,1755181847367,-1100.54,0.00027397,2]
[379193257,1755181847380,-713.2,0.00027397,2]
[379193258,1755181847390,-1770.15,0.00027397,2]
[379193259,1755181847399,-400.0,0.00027397,2]
[379193260,1755181847408,-505.65,0.00027397,2]
[379193261,1755181847418,-2043.88,0.00027397,2]
[379193262,1755181847427,-400.0,0.00027397,2]
[379193263,1755181847437,-409.55,0.00027397,2]
[379193264,1755181847446,-5544.75,0.00027397,2]
[379193265,1755181847455,-526.67,0.00027397,2]
[379193266,1755181847465,-400.0,0.00027397,2]
[379193267,1755181847475,-400.0,0.00027397,2]
[379193268,1755181847484,-400.0,0.00027397,2]
[379193269,1755181847494,-400.0,0.00027397,2]
[379193270,1755181847504,-400.0,0.00027397,2]
[379193271,1755181847514,-400.0,0.00027397,2]
[379193272,1755181847523,-400.0,0.00027397,2]
[379193273,1755181847533,-565.08,0.00027397,2]
[379193274,1755181847542,-1798.61,0.00027397,2]
[379193275,1755181847551,-1894.0,0.00027397,2]
[379193276,1755181847561,-400.0,0.00027397,2]
[379193277,1755181847570,-962.85,0.00027397,2]
[379193278,1755181847580,-1138.09,0.00027397,2]
[379193279,1755181847589,-629.37,0.00027397,2]
[379193280,1755181847599,-400.0,0.00027397,2]
[379193281,1755181847608,-400.0,0.00027397,2]
[379193282,1755181847617,-996.68,0.00027397,2]
[379193283,1755181847628,-680.17,0.00027397,2]
[379193284,1755181847637,-400.0,0.00027397,2]
[379193285,1755181847646,-3514.82,0.00027397,2]
[379193286,1755181847656,-400.0,0.00027397,2]
[379193287,1755181847665,-400.0,0.00027397,2]
[379193288,1755181847675,-796.15,0.00027397,2]
[379193289,1755181847684,-1664.14,0.00027397,2]
[379193290,1755181847693,-400.0,0.00027397,2]
[379193291,1755181847703,-400.64513539,0.00027397,2]
[379193292,1755181847712,-400.0,0.00027397,2]
[379193293,1755181847722,-400.0,0.00027397,2]
[379193294,1755181847732,-300.0,0.00027397,2]
[379193295,1755181847741,-400.0,0.00027397,2]
[379193296,1755181847750,-2062.06,0.00027397,2]
[379193297,1755181847760,-1145.96,0.00027397,2]
[379193298,1755181847769,-534.36,0.00027397,2]
[379193299,1755181847779,-480.28,0.00027397,2]
[379193300,1755181847788,-1905.96,0.00027397,2]
[379193301,1755181847797,-1422.59,0.00027397,2]
[379193302,1755181847806,-400.0,0.00027397,2]
[379193303,1755181847816,-660.17,0.00027397,2]
[379193304,1755181847825,-785.98,0.00027397,2]
[379193305,1755181847835,-400.0,0.00027397,2]
[379193306,1755181847844,-456.37,0.00027397,2]
[379193307,1755181847853,-400.0,0.00027397,2]
[379193308,1755181847862,-400.0,0.00027397,2]
[379193309,1755181847872,-151.0,0.00027397,7]
[379193310,1755181847884,-835.95,0.00027397,2]
[379193311,1755181847893,-3686.26,0.00027397,2]
[379193312,1755181847902,-400.0,0.00027397,2]
[379193313,1755181847911,-1341.78,0.00027397,2]
[379193314,1755181847920,-400.0,0.00027397,2]
[379193315,1755181847930,-1552.89,0.00027397,2]
[379193316,1755181847940,-1141.99,0.00027397,2]
[379193317,1755181847949,-152.263524,0.00027397,7]
[379193318,1755181847958,-695.85,0.00027397,2]
[379193319,1755181847967,-400.0,0.00027397,2]
[379193320,1755181847977,-1725.92,0.00027397,2]
[379193321,1755181847986,-400.0,0.00027397,2]
[379193322,1755181847996,-413.62,0.00027397,2]
[379193323,1755181848009,-695.94,0.00027397,2]
[379193324,1755181848018,-400.0,0.00027397,2]
[379193325,1755181848027,-159.39343557,0.00027397,2]
[379193326,1755181848037,-1717.22,0.00027397,2]
[379193327,1755181848047,-1358.45,0.00027397,2]
[379193328,1755181848056,-1020.89,0.00027397,2]
[379193329,1755181848065,-400.0,0.00027397,2]
[379193330,1755181848074,-400.0,0.00027397,2]
[379193331,1755181848084,-541.63,0.00027397,2]
[379193332,1755181848094,-400.0,0.00027397,2]
[379193333,1755181848103,-2011.53,0.00027397,2]
[379193334,1755181848114,-400.0,0.00027397,2]
[379193335,1755181848124,-1649.48,0.00027397,2]
[379193336,1755181848135,-850.98,0.00027397,2]
[379193337,1755181848144,-3030.53,0.00027397,2]
[379193338,1755181848154,-452.0,0.00027397,2]
[379193339,1755181848164,-1032.95,0.00027397,2]
[379193340,1755181848174,-400.0,0.00027397,2]
[379193341,1755181848183,-400.0,0.00027397,2]
[379193342,1755181848193,-400.0,0.00027397,2]
[379193343,1755181848203,-400.0,0.00027397,2]
[379193344,1755181848212,-400.0,0.00027397,2]
[379193345,1755181848222,-818.31,0.00027397,2]
[379193346,1755181848231,-2679.61,0.00027397,2]
[379193347,1755181848241,-400.0,0.00027397,2]
[379193348,1755181848250,-1103.32,0.00027397,2]
[379193349,1755181848260,-400.0,0.00027397,2]
[379193350,1755181848269,-2616.52,0.00027397,2]
[379193351,1755181848279,-474.46,0.00027397,2]
[379193352,1755181848288,-400.0,0.00027397,2]
[379193353,1755181848298,-400.0,0.00027397,2]
[379193354,1755181848308,-400.0,0.00027397,2]
[379193355,1755181848318,-781.44,0.00027397,2]
[379193356,1755181848327,-1747.6,0.00027397,2]
[379193357,1755181848336,-400.0,0.00027397,2]
[379193358,1755181848346,-455.45,0.00027397,2]
[379193359,1755181848355,-406.05694908,0.00027397,2]
[379193360,1755181848365,-400.0,0.00027397,2]
[379193361,1755181848374,-544.59,0.00027397,2]
[379193362,1755181848384,-475.2,0.00027397,2]
[379193363,1755181848394,-500.0,0.00027397,2]
[379193364,1755181848404,-500.0,0.00027397,2]
[379193365,1755181848414,-400.0,0.00027397,2]
[379193366,1755181848424,-500.0,0.00027397,2]
[379193367,1755181848434,-500.0,0.00027397,2]
[379193368,1755181848444,-500.0,0.00027397,2]
[379193369,1755181848454,-500.0,0.00027397,2]
[379193370,1755181848463,-500.0,0.00027397,2]
[379193371,1755181848473,-500.0,0.00027397,2]
[379193372,1755181848483,-500.0,0.00027397,2]
[379193373,1755181848492,-400.0,0.00027397,2]
[379193374,1755181848502,-500.0,0.00027397,2]
[379193375,1755181848512,-500.0,0.00027397,2]
[379193376,1755181848521,-500.0,0.00027397,2]
[379193377,1755181848530,-400.0,0.00027397,2]
[379193378,1755181848540,-400.0,0.00027397,2]
[379193379,1755181848549,-400.0,0.00027397,2]
[379193380,1755181848559,-2601.17,0.00027397,2]
[379193381,1755181848568,-400.0,0.00027397,2]
[379193382,1755181848578,-1007.26,0.00027397,2]
[379193383,1755181848587,-391.83226663,0.00027397,2]
[379193384,1755181848597,-400.0,0.00027397,2]
[379193385,1755181848606,-738.61,0.00027397,2]
[379193386,1755181848615,-400.0,0.00027397,2]
[379193387,1755181848625,-400.0,0.00027397,2]
[379193388,1755181848639,-632.37,0.00027397,2]
[379193389,1755181848649,-400.0,0.00027397,2]
[379193390,1755181848658,-400.0,0.00027397,2]
[379193391,1755181848668,-400.0,0.00027397,2]
[379193392,1755181848677,-400.0,0.00027397,2]
[379193393,1755181848687,-400.0,0.00027397,2]
[379193394,1755181848696,-1777.59,0.00027397,2]
[379193395,1755181848706,-400.0,0.00027397,2]
[379193396,1755181848716,-400.0,0.00027397,2]
[379193397,1755181848725,-534.27,0.00027397,2]
[379193398,1755181848735,-1119.24,0.00027397,2]
[379193399,1755181848744,-400.0,0.00027397,2]
[379193400,1755181848753,-400.0,0.00027397,2]
[379193401,1755181848763,-400.0,0.00027397,2]
[379193402,1755181848772,-281.44271262,0.00027397,2]
[379193403,1755181848781,-400.0,0.00027397,2]
[379193404,1755181848790,-400.0,0.00027397,2]
[379193405,1755181848799,-3006.74,0.00027397,2]
[379193406,1755181848808,-400.0,0.00027397,2]
[379193407,1755181848817,-1391.86,0.00027397,2]
[379193408,1755181848827,-982.99,0.00027397,2]
[379193409,1755181848836,-311.97089091,0.00027397,2]
[379193410,1755181848845,-655.73,0.00027397,2]
[379193411,1755181848854,-400.0,0.00027397,2]
[379193412,1755181848863,-2068.46,0.00027397,2]
[379193413,1755181848872,-466.55,0.00027397,2]
[379193414,1755181848883,-423.06604886,0.00027397,2]
[379193415,1755181848891,-486.88,0.00027397,2]
[379193416,1755181848901,-400.0,0.00027397,2]
[379193417,1755181848909,-2244.66,0.00027397,2]
[379193418,1755181848918,-1166.04,0.00027397,2]
[379193419,1755181848928,-512.0,0.00027397,2]
[379193420,1755181848937,-406.79,0.00027397,2]
[379193421,1755181848946,-1138.35,0.00027397,2]
[379193422,1755181848955,-1120.54,0.00027397,2]
[379193423,1755181848964,-400.0,0.00027397,2]
[379193424,1755181848974,-1572.56,0.00027397,2]
[379193425,1755181848983,-400.0,0.00027397,2]
[379193426,1755181848992,-400.0,0.00027397,2]
[379193427,1755181849003,-400.0,0.00027397,2]
[379193428,1755181849012,-400.0,0.00027397,2]
[379193429,1755181849021,-1858.06,0.00027397,2]
[379193430,1755181849031,-1063.86,0.00027397,2]
[379193431,1755181849040,-400.0,0.00027397,2]
[379193432,1755181849049,-400.0,0.00027397,2]
[379193433,1755181849059,-4060.82,0.00027397,2]
[379193434,1755181849068,-400.0,0.00027397,2]
[379193435,1755181849078,-2417.15,0.00027397,2]
[379193436,1755181849088,-400.0,0.00027397,2]
[379193437,1755181849096,-400.0,0.00027397,2]
[379193438,1755181849106,-912.52,0.00027397,2]
[379193439,1755181849115,-400.0,0.00027397,2]
[379193440,1755181849124,-400.0,0.00027397,2]
[379193441,1755181849135,-485.77,0.00027397,2]
[379193442,1755181849145,-534.4,0.00027397,2]
[379193443,1755181849155,-890.0,0.00027397,2]
[379193444,1755181849165,-1377.32,0.00027397,2]
[379193445,1755181849174,-400.0,0.00027397,2]
[379193446,1755181849184,-400.0,0.00027397,2]
[379193447,1755181849193,-682.62,0.00027397,2]
[379193448,1755181849202,-943.94,0.00027397,2]
[379193449,1755181849212,-400.0,0.00027397,2]
[379193450,1755181849221,-400.0,0.00027397,2]
[379193451,1755181849231,-1571.26,0.00027397,2]
[379193452,1755181849240,-400.0,0.00027397,2]
[379193453,1755181849250,-200.0,0.00027397,2]
[379193454,1755181849259,-944.74,0.00027397,2]
[379193455,1755181849269,-400.0,0.00027397,2]
[379193456,1755181849278,-1480.24,0.00027397,2]
[379193457,1755181849288,-956.29,0.00027397,2]
[379193458,1755181849298,-400.0,0.00027397,2]
[379193459,1755181849308,-2195.45,0.00027397,2]
[379193460,1755181849318,-400.0,0.00027397,2]
[379193461,1755181849328,-400.0,0.00027397,2]
[379193462,1755181849338,-400.0,0.00027397,2]
[379193463,1755181849347,-427.97,0.00027397,2]
[379193464,1755181849357,-400.0,0.00027397,2]
[379193465,1755181849367,-216.57704694,0.00027397,2]
[379193466,1755181849376,-1282.67,0.00027397,2]
[379193467,1755181849387,-400.0,0.00027397,2]
[379193468,1755181849397,-400.0,0.00027397,2]
[379193469,1755181849407,-1001.82,0.00027397,2]
[379193470,1755181849417,-400.0,0.00027397,2]
[379193471,1755181849426,-400.0,0.00027397,2]
[379193472,1755181849436,-400.0,0.00027397,2]
[379193473,1755181849445,-803.0,0.00027397,2]
[379193474,1755181849454,-1645.25,0.00027397,2]
[379193475,1755181849464,-400.0,0.00027397,2]
[379193476,1755181849474,-879.87,0.00027397,2]
[379193477,1755181849483,-423.89,0.00027397,2]
[379193478,1755181849493,-2197.81,0.00027397,2]
[379193479,1755181849502,-400.0,0.00027397,2]
[379193480,1755181849512,-197.60455942,0.00027397,2]
[379193481,1755181849522,-427.79162415,0.00027397,2]
[379193482,1755181849531,-562.48,0.00027397,2]